fUST/lending_fUST_20260524
["ID","MTS","AMOUNT","RATE_DAILY","PERIOD"]
[422891423,1779583844000,-193.82,0.00013071,2]
[422891413,1779583844000,-500.0,0.00012997,2]
[422891421,1779583844000,-332.4,0.00013071,2]
[422891420,1779583844000,-622.19,0.00013071,2]
[422891422,1779583844000,-500.0,0.00013071,2]
[422891433,1779583844000,-384.56,0.00013144,2]
[422891432,1779583844000,-4105.223674,0.00013071,2]
[422891370,1779583844000,-303.454048,0.00012797,2]
[422891434,1779583844000,-2246.326,0.000132,2]
[422891435,1779583844000,-2246.326,0.000132,2]
[422891424,1779583844000,-181.32,0.00013071,2]
[422891427,1779583844000,-623.43,0.00013071,2]
[422891428,1779583844000,-304.96,0.00013071,2]
[422891426,1779583844000,-500.0,0.00013071,2]
[422891431,1779583844000,-4105.223674,0.00013071,2]
[422891430,1779583844000,-4105.223674,0.00013071,2]
[422891429,1779583844000,-4105.223674,0.00013071,2]
[422891403,1779583844000,-500.0,0.00012963,2]
[422891400,1779583844000,-500.87575633,0.00012963,2]
[422891425,1779583844000,-500.0,0.00013071,2]
[422891402,1779583844000,-302.92907733,0.00012963,2]
[422891401,1779583844000,-500.0,0.00012963,2]
[422891373,1779583844000,-303.454048,0.00012797,2]
[422891376,1779583844000,-4105.223674,0.00012797,2]
[422891375,1779583844000,-4105.223674,0.00012797,2]
[422891377,1779583844000,-4105.223674,0.00012797,2]
[422891380,1779583844000,-4105.223674,0.00012797,2]
[422891379,1779583844000,-4105.223674,0.00012797,2]
[422891382,1779583844000,-4105.223674,0.00012797,2]
[422891383,1779583844000,-4105.223674,0.00012797,2]
[422891381,1779583844000,-4105.223674,0.00012797,2]
[422891384,1779583844000,-4105.223674,0.00012797,2]
[422891385,1779583844000,-4105.223674,0.00012797,2]
[422891387,1779583844000,-151.0,0.00012797,2]
[422891388,1779583844000,-151.218017,0.00012797,2]
[422891378,1779583844000,-4105.223674,0.00012797,2]
[422891390,1779583844000,-189.14349823,0.0001287,2]
[422891398,1779583844000,-500.0,0.00012963,2]
[422891389,1779583844000,-500.0,0.0001287,2]
[422891410,1779583844000,-500.0,0.00012997,2]
[422891411,1779583844000,-500.0,0.00012997,2]
[422891399,1779583844000,-500.19041846,0.00012963,2]
[422891391,1779583844000,-590.0,0.0001287,2]
[422891409,1779583844000,-303.454048,0.00012963,2]
[422891395,1779583844000,-500.0,0.00012963,2]
[422891397,1779583844000,-593.16,0.00012963,2]
[422891386,1779583844000,-4105.223674,0.00012797,2]
[422891392,1779583844000,-500.22305158,0.00012871,2]
[422891394,1779583844000,-500.0,0.00012871,2]
[422891393,1779583844000,-500.0,0.00012871,2]
[422891396,1779583844000,-500.0,0.00012963,2]
[422891461,1779583845000,-273.666923,0.00013699,2]
[422891474,1779583845000,-727.857,0.00013699,2]
[422891454,1779583845000,-4105.223673,0.000135,2]
[422891456,1779583845000,-1000.0,0.00013699,2]
[422891458,1779583845000,-273.666923,0.00013699,2]
[422891463,1779583845000,-273.666923,0.00013699,2]
[422891464,1779583845000,-273.666923,0.00013699,2]
[422891475,1779583845000,-727.857,0.00013699,2]
[422891466,1779583845000,-727.857,0.00013699,2]
[422891473,1779583845000,-727.857,0.00013699,2]
[422891468,1779583845000,-727.857,0.00013699,2]
[422891469,1779583845000,-727.857,0.00013699,2]
[422891467,1779583845000,-727.857,0.00013699,2]
[422891470,1779583845000,-727.857,0.00013699,2]
[422891472,1779583845000,-727.857,0.00013699,2]
[422891471,1779583845000,-727.857,0.00013699,2]
[422891477,1779583845000,-727.857,0.00013699,2]
[422891455,1779583845000,-151.0,0.00013699,2]
[422891465,1779583845000,-273.666923,0.00013699,2]
[422891453,1779583845000,-4105.223674,0.000135,2]
[422891439,1779583845000,-1510.905,0.000132,2]
[422891451,1779583845000,-4105.223674,0.000135,2]
[422891476,1779583845000,-727.857,0.00013699,2]
[422891436,1779583845000,-2246.32,0.000132,2]
[422891437,1779583845000,-478.35,0.000132,2]
[422891442,1779583845000,-303.454048,0.000132,2]
[422891440,1779583845000,-1510.9,0.000132,2]
[422891441,1779583845000,-303.454048,0.000132,2]
[422891446,1779583845000,-1508.64,0.000132,2]
[422891445,1779583845000,-1508.64,0.000132,2]
[422891450,1779583845000,-150.93,0.000135,2]
[422891447,1779583845000,-500.0,0.00013271,2]
[422891438,1779583845000,-2036.47,0.000132,2]
[422891443,1779583845000,-303.454048,0.000132,2]
[422891444,1779583845000,-303.454048,0.000132,2]
[422891448,1779583845000,-189.41898783,0.00013271,2]
[422891449,1779583845000,-367.79280704,0.00013345,2]
[422891452,1779583845000,-4105.223674,0.000135,2]
[422891459,1779583845000,-273.666923,0.00013699,2]
[422891460,1779583845000,-273.666923,0.00013699,2]
[422891457,1779583845000,-1091.336645,0.00013699,2]
[422891462,1779583845000,-273.666923,0.00013699,2]
[422891486,1779583845000,-220.567093,0.00013699,2]
[422891497,1779583845000,-273.666923,0.00013699,2]
[422891482,1779583845000,-727.857,0.00013699,2]
[422891507,1779583845000,-220.13955423,0.000139,2]
[422891506,1779583845000,-170.18196017,0.000139,2]
[422891508,1779583845000,-234.39497643,0.000139,2]
[422891509,1779583845000,-266.78292696,0.000139,2]
[422891510,1779583845000,-10361.3430089,0.000139,2]
[422891511,1779583845000,-886.5835052,0.000139,2]
[422891518,1779583845000,-648.94216788,0.00014,2]
[422891513,1779583845000,-191.12854574,0.00013999,2]
[422891512,1779583845000,-395.67308436,0.000139,2]
[422891520,1779583845000,-42000.0,0.00014,2]
[422891516,1779583845000,-500.0,0.00014,2]
[422891517,1779583845000,-136682.71315152,0.00014,2]
[422891515,1779583845000,-421102.66251143,0.00014,2]
[422891519,1779583845000,-2964.69468935,0.00014,2]
[422891514,1779583845000,-355164.16747317,0.00014,2]
[422891521,1779583845000,-77996.20162603,0.00014,2]
[422891525,1779583845000,-2386.89478354,0.00014,2]
[422891526,1779583845000,-622.06039237,0.00014,2]
[422891479,1779583845000,-727.857,0.00013699,2]
[422891505,1779583845000,-170.18196017,0.000139,2]
[422891504,1779583845000,-185.0,0.00013849,2]
[422891523,1779583845000,-978.13732109,0.00014,2]
[422891494,1779583845000,-273.666923,0.00013699,2]
[422891496,1779583845000,-273.666923,0.00013699,2]
[422891480,1779583845000,-727.857,0.00013699,2]
[422891483,1779583845000,-727.857,0.00013699,2]
[422891478,1779583845000,-727.857,0.00013699,2]
[422891481,1779583845000,-727.857,0.00013699,2]
[422891484,1779583845000,-727.857,0.00013699,2]
[422891487,1779583845000,-197.37699744,0.00013699,2]
[422891485,1779583845000,-727.856996,0.00013699,2]
[422891491,1779583845000,-151.0,0.00013699,2]
[422891489,1779583845000,-394.75399489,0.00013699,2]
[422891498,1779583845000,-303.454048,0.00013699,2]
[422891495,1779583845000,-273.666923,0.00013699,2]
[422891492,1779583845000,-180.281376,0.00013699,2]
[422891493,1779583845000,-214.298336,0.00013699,2]
[422891503,1779583845000,-216.321,0.0001372,2]
[422891502,1779583845000,-152.0,0.0001372,7]
[422891527,1779583845000,-38455.33605393,0.00014,2]
[422891500,1779583845000,-303.454048,0.00013699,2]
[422891499,1779583845000,-303.454048,0.00013699,2]
[422891501,1779583845000,-303.454039,0.00013699,2]
[422891671,1779583846000,-22082.44454948,0.00014,2]
[422891674,1779583846000,-9868.1618866,0.00014,2]
[422891727,1779583847000,-60942.83703976,0.00014,2]
[422891724,1779583847000,-8321.96847734,0.00014,2]
[422891722,1779583847000,-10322.45194937,0.00014,2]
[422892046,1779584948000,-151.85298368,5.494e-05,2]
[422892089,1779585032000,-432.91578625,5.385e-05,2]
[422892093,1779585032000,-425.2979703,5.385e-05,2]
[422892091,1779585032000,-637.35818979,5.385e-05,2]
[422892222,1779585038000,-150.98,0.00012,2]
[422892231,1779585038000,-500.0,0.00012039,2]
[422892230,1779585038000,-500.0,0.00012039,2]
[422892241,1779585038000,-151.5,0.00012039,2]
[422892239,1779585038000,-500.0,0.00012039,2]
[422892229,1779585038000,-500.0,0.00012039,2]
[422892228,1779585038000,-500.0,0.00012039,2]
[422892227,1779585038000,-500.0,0.00012039,2]
[422892226,1779585038000,-500.0,0.00012039,2]
[422892225,1779585038000,-500.0,0.00012038,2]
[422892217,1779585038000,-1200.0,0.00010999,2]
[422892223,1779585038000,-500.0,0.00012038,2]
[422892224,1779585038000,-500.0,0.00012038,2]
[422892212,1779585038000,-169.0,0.00010959,3]
[422892221,1779585038000,-150.91,0.00012,2]
[422892219,1779585038000,-561.056045,0.00011272,2]
[422892218,1779585038000,-6307.74716199,0.00011,2]
[422892216,1779585038000,-300.0,0.00010999,2]
[422892210,1779585038000,-276.77496709,8.181e-05,2]
[422892213,1779585038000,-300.0,0.00010999,2]
[422892211,1779585038000,-326.59446116,0.00010181,2]
[422892209,1779585038000,-12.76494032,5.494e-05,2]
[422892207,1779585038000,-1215.2120053,5.385e-05,2]
[422892215,1779585038000,-300.0,0.00010999,2]
[422892214,1779585038000,-206.0,0.00010999,2]
[422892208,1779585038000,-5000.0,5.439e-05,2]
[422892236,1779585038000,-233.26084253,0.00012039,2]
[422892220,1779585038000,-150.92,0.00012,2]
[422892234,1779585038000,-500.0,0.00012039,2]
[422892240,1779585038000,-241.81882123,0.00012039,2]
[422892237,1779585038000,-500.0,0.00012039,2]
[422892238,1779585038000,-500.0,0.00012039,2]
[422892261,1779585038000,-500.0,0.00012039,2]
[422892262,1779585038000,-500.0,0.00012039,2]
[422892258,1779585038000,-154.01264662,0.00012039,2]
[422892259,1779585038000,-576.86,0.00012039,2]
[422892263,1779585038000,-500.0,0.00012039,2]
[422892257,1779585038000,-500.0,0.00012039,2]
[422892260,1779585038000,-389.45682174,0.00012039,2]
[422892255,1779585038000,-500.0,0.00012039,2]
[422892264,1779585038000,-500.0,0.00012039,2]
[422892265,1779585038000,-500.0,0.00012039,2]
[422892256,1779585038000,-500.0,0.00012039,2]
[422892253,1779585038000,-536.99795591,0.00012039,2]
[422892254,1779585038000,-500.0,0.00012039,2]
[422892266,1779585038000,-500.0,0.00012039,2]
[422892251,1779585038000,-500.0,0.00012039,2]
[422892235,1779585038000,-500.0,0.00012039,2]
[422892252,1779585038000,-500.0,0.00012039,2]
[422892232,1779585038000,-500.0,0.00012039,2]
[422892242,1779585038000,-500.0,0.00012039,2]
[422892244,1779585038000,-500.0,0.00012039,2]
[422892247,1779585038000,-500.0,0.00012039,2]
[422892233,1779585038000,-500.0,0.00012039,2]
[422892246,1779585038000,-500.0,0.00012039,2]
[422892249,1779585038000,-500.0,0.00012039,2]
[422892243,1779585038000,-500.0,0.00012039,2]
[422892248,1779585038000,-500.0,0.00012039,2]
[422892250,1779585038000,-500.0,0.00012039,2]
[422892245,1779585038000,-505.11139571,0.00012039,2]
[422892313,1779585039000,-500.0,0.0001204,2]
[422892310,1779585039000,-500.0,0.0001204,2]
[422892309,1779585039000,-500.0,0.0001204,2]
[422892308,1779585039000,-500.0,0.0001204,2]
[422892306,1779585039000,-500.0,0.0001204,2]
[422892302,1779585039000,-500.0,0.0001204,2]
[422892305,1779585039000,-500.0,0.0001204,2]
[422892299,1779585039000,-500.0,0.0001204,2]
[422892300,1779585039000,-500.0,0.0001204,2]
[422892301,1779585039000,-204.45353009,0.0001204,2]
[422892304,1779585039000,-500.0,0.0001204,2]
[422892312,1779585039000,-500.0,0.0001204,2]
[422892307,1779585039000,-500.0,0.0001204,2]
[422892311,1779585039000,-500.0,0.0001204,2]
[422892323,1779585039000,-500.0,0.0001204,2]
[422892315,1779585039000,-600.68132839,0.0001204,2]
[422892317,1779585039000,-500.0,0.0001204,2]
[422892318,1779585039000,-500.0,0.0001204,2]
[422892316,1779585039000,-500.0,0.0001204,2]
[422892319,1779585039000,-500.0,0.0001204,2]
[422892320,1779585039000,-219.33776712,0.0001204,2]
[422892321,1779585039000,-500.0,0.0001204,2]
[422892322,1779585039000,-500.0,0.0001204,2]
[422892328,1779585039000,-500.0,0.0001204,2]
[422892327,1779585039000,-500.0,0.0001204,2]
[422892324,1779585039000,-500.0,0.0001204,2]
[422892325,1779585039000,-500.0,0.0001204,2]
[422892296,1779585039000,-500.0,0.0001204,2]
[422892329,1779585039000,-500.0,0.0001204,2]
[422892314,1779585039000,-500.0,0.0001204,2]
[422892303,1779585039000,-500.0,0.0001204,2]
[422892283,1779585039000,-500.0,0.00012039,2]
[422892295,1779585039000,-151.5,0.0001204,2]
[422892330,1779585039000,-500.0,0.0001204,2]
[422892267,1779585039000,-500.0,0.00012039,2]
[422892268,1779585039000,-500.0,0.00012039,2]
[422892272,1779585039000,-500.0,0.00012039,2]
[422892270,1779585039000,-500.0,0.00012039,2]
[422892271,1779585039000,-413.60640022,0.00012039,2]
[422892269,1779585039000,-500.0,0.00012039,2]
[422892273,1779585039000,-500.0,0.00012039,2]
[422892281,1779585039000,-151.5,0.00012039,2]
[422892274,1779585039000,-500.0,0.00012039,2]
[422892279,1779585039000,-500.0,0.00012039,2]
[422892277,1779585039000,-350.68173262,0.00012039,2]
[422892280,1779585039000,-151.5,0.00012039,2]
[422892276,1779585039000,-500.0,0.00012039,2]
[422892275,1779585039000,-500.0,0.00012039,2]
[422892278,1779585039000,-500.0,0.00012039,2]
[422892291,1779585039000,-500.0,0.00012039,2]
[422892294,1779585039000,-500.0,0.0001204,2]
[422892293,1779585039000,-500.0,0.0001204,2]
[422892292,1779585039000,-151.5,0.0001204,2]
[422892284,1779585039000,-500.0,0.00012039,2]
[422892287,1779585039000,-500.0,0.00012039,2]
[422892288,1779585039000,-500.0,0.00012039,2]
[422892285,1779585039000,-500.0,0.00012039,2]
[422892290,1779585039000,-500.0,0.00012039,2]
[422892282,1779585039000,-262.32614137,0.00012039,2]
[422892289,1779585039000,-500.0,0.00012039,2]
[422892286,1779585039000,-500.0,0.00012039,2]
[422892297,1779585039000,-500.0,0.0001204,2]
[422892298,1779585039000,-151.5,0.0001204,2]
[422892332,1779585039000,-192.0800676,0.0001204,2]
[422892355,1779585039000,-500.0,0.00012312,2]
[422892326,1779585039000,-500.0,0.0001204,2]
[422892361,1779585039000,-500.0,0.00012312,2]
[422892364,1779585039000,-500.0,0.00012312,2]
[422892366,1779585039000,-547.81444658,0.00012312,2]
[422892370,1779585039000,-500.0,0.00012312,2]
[422892368,1779585039000,-500.0,0.00012312,2]
[422892367,1779585039000,-500.0,0.00012312,2]
[422892374,1779585039000,-500.0,0.00012312,2]
[422892378,1779585039000,-500.0,0.00012312,2]
[422892381,1779585039000,-500.0,0.00012312,2]
[422892383,1779585039000,-500.0,0.00012312,2]
[422892385,1779585039000,-500.0,0.00012312,2]
[422892380,1779585039000,-500.0,0.00012312,2]
[422892375,1779585039000,-500.19192874,0.00012312,2]
[422892377,1779585039000,-553.43794604,0.00012312,2]
[422892363,1779585039000,-500.0,0.00012312,2]
[422892376,1779585039000,-500.0,0.00012312,2]
[422892386,1779585039000,-500.0,0.00012312,2]
[422892382,1779585039000,-500.0,0.00012312,2]
[422892387,1779585039000,-500.0,0.00012312,2]
[422892384,1779585039000,-500.0,0.00012312,2]
[422892389,1779585039000,-500.0,0.00012313,2]
[422892400,1779585039000,-500.0,0.00012313,2]
[422892399,1779585039000,-500.0,0.00012313,2]
[422892395,1779585039000,-500.0,0.00012313,2]
[422892401,1779585039000,-500.0,0.00012313,2]
[422892393,1779585039000,-500.0,0.00012313,2]
[422892402,1779585039000,-500.0,0.00012313,2]
[422892391,1779585039000,-500.0,0.00012313,2]
[422892331,1779585039000,-500.0,0.0001204,2]
[422892398,1779585039000,-508.23885077,0.00012313,2]
[422892379,1779585039000,-500.0,0.00012312,2]
[422892362,1779585039000,-500.0,0.00012312,2]
[422892397,1779585039000,-500.23698071,0.00012313,2]
[422892365,1779585039000,-500.0,0.00012312,2]
[422892334,1779585039000,-420.0,0.00012087,2]
[422892369,1779585039000,-500.0,0.00012312,2]
[422892338,1779585039000,-500.0,0.00012311,2]
[422892336,1779585039000,-376.41395524,0.00012181,2]
[422892333,1779585039000,-500.0,0.0001204,2]
[422892337,1779585039000,-332.60986874,0.00012311,2]
[422892335,1779585039000,-1680.0,0.00012099,2]
[422892346,1779585039000,-500.0,0.00012311,2]
[422892345,1779585039000,-500.0,0.00012311,2]
[422892343,1779585039000,-500.0,0.00012311,2]
[422892339,1779585039000,-500.0,0.00012311,2]
[422892342,1779585039000,-500.0,0.00012311,2]
[422892340,1779585039000,-500.0,0.00012311,2]
[422892347,1779585039000,-500.0,0.00012311,2]
[422892349,1779585039000,-500.0,0.00012311,2]
[422892344,1779585039000,-500.0,0.00012311,2]
[422892350,1779585039000,-631.91010376,0.00012311,2]
[422892373,1779585039000,-500.0,0.00012312,2]
[422892351,1779585039000,-500.0,0.00012311,2]
[422892372,1779585039000,-500.0,0.00012312,2]
[422892359,1779585039000,-500.0,0.00012312,2]
[422892360,1779585039000,-500.0,0.00012312,2]
[422892348,1779585039000,-500.0,0.00012311,2]
[422892371,1779585039000,-500.0,0.00012312,2]
[422892358,1779585039000,-500.0,0.00012312,2]
[422892356,1779585039000,-500.0,0.00012312,2]
[422892353,1779585039000,-500.0,0.00012312,2]
[422892352,1779585039000,-500.0,0.00012311,2]
[422892357,1779585039000,-500.0,0.00012312,2]
[422892354,1779585039000,-500.0,0.00012312,2]
[422892444,1779585040000,-2856.6887,0.00012313,2]
[422892451,1779585040000,-500.0,0.00012313,2]
[422892443,1779585040000,-500.0,0.00012313,2]
[422892441,1779585040000,-500.0,0.00012313,2]
[422892442,1779585040000,-500.0,0.00012313,2]
[422892433,1779585040000,-500.0,0.00012313,2]
[422892435,1779585040000,-500.0,0.00012313,2]
[422892434,1779585040000,-500.0,0.00012313,2]
[422892439,1779585040000,-500.0,0.00012313,2]
[422892445,1779585040000,-500.0,0.00012313,2]
[422892440,1779585040000,-500.0,0.00012313,2]
[422892450,1779585040000,-500.0,0.00012313,2]
[422892463,1779585040000,-293.88500379,0.00012314,2]
[422892447,1779585040000,-500.0,0.00012313,2]
[422892448,1779585040000,-500.0,0.00012313,2]
[422892449,1779585040000,-500.0,0.00012313,2]
[422892453,1779585040000,-500.0,0.00012313,2]
[422892456,1779585040000,-500.0,0.00012314,2]
[422892458,1779585040000,-323.7223841,0.00012314,2]
[422892460,1779585040000,-500.0,0.00012314,2]
[422892452,1779585040000,-500.0,0.00012313,2]
[422892455,1779585040000,-500.0,0.00012314,2]
[422892462,1779585040000,-500.0,0.00012314,2]
[422892465,1779585040000,-151.5,0.00012314,2]
[422892464,1779585040000,-151.5,0.00012314,2]
[422892438,1779585040000,-500.0,0.00012313,2]
[422892461,1779585040000,-500.0,0.00012314,2]
[422892446,1779585040000,-551.64,0.00012313,2]
[422892437,1779585040000,-500.0,0.00012313,2]
[422892421,1779585040000,-500.0,0.00012313,2]
[422892436,1779585040000,-500.0,0.00012313,2]
[422892454,1779585040000,-500.0,0.00012313,2]
[422892403,1779585040000,-500.0,0.00012313,2]
[422892404,1779585040000,-500.0,0.00012313,2]
[422892405,1779585040000,-500.0,0.00012313,2]
[422892407,1779585040000,-500.0,0.00012313,2]
[422892409,1779585040000,-500.0,0.00012313,2]
[422892418,1779585040000,-500.0,0.00012313,2]
[422892417,1779585040000,-500.0,0.00012313,2]
[422892408,1779585040000,-500.0,0.00012313,2]
[422892406,1779585040000,-489.68848654,0.00012313,2]
[422892412,1779585040000,-500.0,0.00012313,2]
[422892411,1779585040000,-500.0,0.00012313,2]
[422892413,1779585040000,-500.0,0.00012313,2]
[422892415,1779585040000,-500.0,0.00012313,2]
[422892416,1779585040000,-458.14784718,0.00012313,2]
[422892410,1779585040000,-500.0,0.00012313,2]
[422892414,1779585040000,-500.0,0.00012313,2]
[422892419,1779585040000,-507.40166816,0.00012313,2]
[422892425,1779585040000,-500.0,0.00012313,2]
[422892428,1779585040000,-500.0,0.00012313,2]
[422892430,1779585040000,-500.0,0.00012313,2]
[422892424,1779585040000,-500.0,0.00012313,2]
[422892422,1779585040000,-500.0,0.00012313,2]
[422892423,1779585040000,-500.0,0.00012313,2]
[422892429,1779585040000,-500.0,0.00012313,2]
[422892420,1779585040000,-500.0,0.00012313,2]
[422892426,1779585040000,-500.0,0.00012313,2]
[422892427,1779585040000,-500.0,0.00012313,2]
[422892432,1779585040000,-500.0,0.00012313,2]
[422892431,1779585040000,-500.0,0.00012313,2]
[422892457,1779585040000,-500.0,0.00012314,2]
[422892494,1779585040000,-500.0,0.00012586,2]
[422892468,1779585040000,-151.5,0.00012314,2]
[422892499,1779585040000,-500.0,0.00012586,2]
[422892502,1779585040000,-500.0,0.00012586,2]
[422892504,1779585040000,-302.0,0.00012586,2]
[422892501,1779585040000,-500.0,0.00012586,2]
[422892503,1779585040000,-531.03155846,0.00012586,2]
[422892507,1779585040000,-500.0,0.00012586,2]
[422892515,1779585040000,-500.0,0.00012586,2]
[422892514,1779585040000,-500.0,0.00012586,2]
[422892513,1779585040000,-500.0,0.00012586,2]
[422892512,1779585040000,-500.0,0.00012586,2]
[422892516,1779585040000,-500.0,0.00012586,2]
[422892506,1779585040000,-500.0,0.00012586,2]
[422892509,1779585040000,-6805.246496,0.00012586,2]
[422892500,1779585040000,-500.0,0.00012586,2]
[422892508,1779585040000,-605.50745383,0.00012586,2]
[422892518,1779585040000,-2789.855994,0.00012586,2]
[422892511,1779585040000,-500.0,0.00012586,2]
[422892519,1779585040000,-500.0,0.00012586,2]
[422892517,1779585040000,-500.0,0.00012586,2]
[422892521,1779585040000,-500.0,0.00012586,2]
[422892526,1779585040000,-500.0,0.00012586,2]
[422892527,1779585040000,-860.322645,0.00012586,2]
[422892520,1779585040000,-365.28041542,0.00012586,2]
[422892524,1779585040000,-500.0,0.00012586,2]
[422892522,1779585040000,-500.0,0.00012586,2]
[422892523,1779585040000,-500.0,0.00012586,2]
[422892459,1779585040000,-500.0,0.00012314,2]
[422892528,1779585040000,-500.0,0.00012586,2]
[422892510,1779585040000,-500.0,0.00012586,2]
[422892505,1779585040000,-500.0,0.00012586,2]
[422892525,1779585040000,-500.0,0.00012586,2]
[422892496,1779585040000,-500.0,0.00012586,2]
[422892498,1779585040000,-500.0,0.00012586,2]
[422892466,1779585040000,-151.5,0.00012314,2]
[422892471,1779585040000,-151.5,0.00012314,2]
[422892467,1779585040000,-175.79440304,0.00012314,2]
[422892470,1779585040000,-151.5,0.00012314,2]
[422892473,1779585040000,-500.0,0.00012314,2]
[422892474,1779585040000,-500.0,0.00012314,2]
[422892477,1779585040000,-500.0,0.00012314,2]
[422892472,1779585040000,-500.0,0.00012314,2]
[422892476,1779585040000,-500.0,0.00012314,2]
[422892475,1779585040000,-220.40668067,0.00012314,2]
[422892478,1779585040000,-500.0,0.00012314,2]
[422892480,1779585040000,-500.0,0.00012314,2]
[422892491,1779585040000,-823.05637124,0.000125,2]
[422892469,1779585040000,-279.93999093,0.00012314,2]
[422892490,1779585040000,-783.64648594,0.000125,2]
[422892484,1779585040000,-766.63845589,0.00012454,2]
[422892495,1779585040000,-500.0,0.00012586,2]
[422892493,1779585040000,-500.0,0.00012586,2]
[422892488,1779585040000,-373.3899208,0.000125,2]
[422892486,1779585040000,-160.0,0.00012455,2]
[422892481,1779585040000,-500.0,0.00012314,2]
[422892497,1779585040000,-500.0,0.00012586,2]
[422892489,1779585040000,-712.46099169,0.000125,2]
[422892485,1779585040000,-161.73153808,0.00012454,2]
[422892479,1779585040000,-500.0,0.00012314,2]
[422892492,1779585040000,-600.0,0.00012557,2]
[422892483,1779585040000,-202.02008808,0.00012314,2]
[422892482,1779585040000,-500.0,0.00012314,2]
[422892487,1779585040000,-156.63520687,0.00012486,2]
[422892571,1779585041000,-500.0,0.00012586,2]
[422892569,1779585041000,-500.0,0.00012586,2]
[422892561,1779585041000,-500.0,0.00012586,2]
[422892570,1779585041000,-500.0,0.00012586,2]
[422892567,1779585041000,-500.0,0.00012586,2]
[422892566,1779585041000,-641.13300045,0.00012586,2]
[422892563,1779585041000,-500.0,0.00012586,2]
[422892562,1779585041000,-500.0,0.00012586,2]
[422892565,1779585041000,-500.0,0.00012586,2]
[422892573,1779585041000,-500.0,0.00012586,2]
[422892568,1779585041000,-157.86258172,0.00012586,2]
[422892564,1779585041000,-500.0,0.00012586,2]
[422892585,1779585041000,-500.0,0.00012586,2]
[422892574,1779585041000,-500.0,0.00012586,2]
[422892576,1779585041000,-500.0,0.00012586,2]
[422892577,1779585041000,-500.0,0.00012586,2]
[422892575,1779585041000,-500.0,0.00012586,2]
[422892579,1779585041000,-500.0,0.00012586,2]
[422892578,1779585041000,-500.0,0.00012586,2]
[422892586,1779585041000,-500.0,0.00012586,2]
[422892583,1779585041000,-500.0,0.00012586,2]
[422892584,1779585041000,-500.0,0.00012586,2]
[422892581,1779585041000,-282.11081302,0.00012586,2]
[422892580,1779585041000,-500.0,0.00012586,2]
[422892582,1779585041000,-500.0,0.00012586,2]
[422892560,1779585041000,-500.0,0.00012586,2]
[422892572,1779585041000,-500.0,0.00012586,2]
[422892559,1779585041000,-500.0,0.00012586,2]
[422892546,1779585041000,-500.0,0.00012586,2]
[422892556,1779585041000,-500.0,0.00012586,2]
[422892532,1779585041000,-500.0,0.00012586,2]
[422892533,1779585041000,-500.0,0.00012586,2]
[422892531,1779585041000,-500.0,0.00012586,2]
[422892530,1779585041000,-500.0,0.00012586,2]
[422892529,1779585041000,-500.0,0.00012586,2]
[422892534,1779585041000,-500.0,0.00012586,2]